Entity,Pay date,Expense Type,Expense Area,Supplier,Transaction Number,Amount,Description
NS&I,30/04/2018,Unitary fee - Outsource partner,Commercial Contracts,Atos IT Services UK Ltd,4011422,"4,478,077",Unitary Service Charge - April 2018
NS&I,30/04/2018,Project costs - Outsource partner,Programme Delivery,Atos IT Services UK Ltd,4011449,"1,427,529",Licence for new customer experience platform
NS&I,18/04/2018,Unitary fee - Outsource partner,B2B Government Payment Services,Atos IT Services UK Ltd,4011260,"1,269,956",Tax-Free Childcare Service Charges  February 2018
NS&I,18/04/2018,Building services charge,Property,James Andrew International,4011345,"720,737",Quarterly Rent for Regional Office Q1 2018
NS&I,18/04/2018,Unitary fee - Outsource partner,B2B Government Payment Services,Atos IT Services UK Ltd,4011334,"600,707",Help To Save Project Charges February 2018
NS&I,18/04/2018,Unitary fee - Outsource partner,B2B Government Payment Services,Atos IT Services UK Ltd,4011290,"584,419",Help to save  Service Charges  February 2018
NS&I,18/04/2018,Unitary fee - Outsource partner,B2B Government Payment Services,Atos IT Services UK Ltd,4011203,"320,512",Tax-Free Childcare Service Charges February 2018
NS&I,18/04/2018,Unitary fee - Outsource partner,B2B Government Payment Services,Atos IT Services UK Ltd,4011314,"262,046",30 Hours Free Childcare Service Charges February 2018
NS&I,04/04/2018,Project costs - Outsource partner,Programme Delivery,Atos IT Services UK Ltd,4011028,"260,301",Open Banking  - January 2018
NS&I,18/04/2018,Unitary fee - Outsource partner,B2B Government Payment Services,Atos IT Services UK Ltd,4011204,"256,773",Tax-Free Childcare Project Charges February 2018
NS&I,18/04/2018,Unitary fee - Outsource partner,B2B Government Payment Services,Atos IT Services UK Ltd,4011315,"227,804",30 Hours Free Childcare Service Charges February 2018
NS&I,11/04/2018,Rentals under operating leases,Property,Durham County Council - City of Durham,4011297,"203,507",Quarterly Rent for Regional Office Q2 2018
NS&I,11/04/2018,Unitary fee - Outsource partner,B2B Government Payment Services,Atos IT Services UK Ltd,4011291,"197,288",Home Office Service Charges - February 2018
NS&I,04/04/2018,Professional services - Other,Brand,The Team Brand Communications Ltd,4011183,"154,550",Design of Corporate website
NS&I,04/04/2018,Advertising and production,Marketing Communications,Carat (Registered as Dentsu Aegis UK Ltd),4011066,"135,978",Cost of Marketing Campaigns
NS&I,11/04/2018,Unitary fee - Outsource partner,B2B Government Payment Services,Atos IT Services UK Ltd,4011205,"129,369",Court Funds Office Service Charges  February 2018
NS&I,18/04/2018,Advertising and production,Marketing Communications,Carat (Registered as Dentsu Aegis UK Ltd),4011230,"119,203",Cost of Marketing Campaigns
NS&I,30/04/2018,Project costs - Outsource partner,Programme Delivery,Atos IT Services UK Ltd,4011450,"111,333",Costs for Simplified Bond Records project
NS&I,04/04/2018,Advertising and production,Marketing Communications,Carat (Registered as Dentsu Aegis UK Ltd),4011032,"105,363",Cost of Marketing Campaigns 
NS&I,11/04/2018,Project costs - Outsource partner,Programme Delivery,Atos IT Services UK Ltd,4011130,"102,000",Transformation programme - Management cost - Feb 2018
NS&I,30/04/2018,Project costs - Outsource partner,Programme Delivery,Atos IT Services UK Ltd,4011451,"102,000",Transformation programme - Management cost - Mar 2018
NS&I,04/04/2018,Project costs - Outsource partner,Programme Delivery,Atos IT Services UK Ltd,4011029,"100,979",Open Banking  - February 2018
NS&I,04/04/2018,Project costs - Outsource partner,Programme Delivery,Atos IT Services UK Ltd,4011025,"96,564",Software enhancement costs  January 2018
NS&I,30/04/2018,Project costs - Outsource partner,Transactional Customer Comms,Atos IT Services UK Ltd,4011443,"91,754",Update of forms involved in Transactions
NS&I,25/04/2018,Advertising and production,Marketing Communications,Carat (Registered as Dentsu Aegis UK Ltd),4011374,"90,830",Cost of Marketing Campaigns
NS&I,11/04/2018,Project costs - Outsource partner,Programme Delivery,Atos IT Services UK Ltd,4011131,"87,100",Costs for delivering the decoupled IT infrastructure - February 2018
NS&I,18/04/2018,Project costs - Outsource partner,Programme Delivery,Atos IT Services UK Ltd,4011261,"85,833",Software enhancement costs  March 2018
NS&I,11/04/2018,Advertising and production,Marketing Communications,Carat (Registered as Dentsu Aegis UK Ltd),4011151,"80,231",Cost of Marketing Campaigns
NS&I,25/04/2018,Advertising and production,Marketing Communications,Carat (Registered as Dentsu Aegis UK Ltd),4011376,"80,088",Cost of Marketing Campaigns
NS&I,18/04/2018,Building services charge,Property,Atos IT Services UK Ltd,4011198,"79,452",London Office Refit
NS&I,25/04/2018,Office equipment / Fixtures and fittings - Maintenance,Property,Atos IT Services UK Ltd,4011344,"73,560",London Office Refit
NS&I,18/04/2018,Building services charge,Property,Atos IT Services UK Ltd,4011208,"71,464",London Office Refit
NS&I,11/04/2018,Advertising and production,Marketing Communications,Carat (Registered as Dentsu Aegis UK Ltd),4011299,"65,212",Cost of Marketing Campaigns
NS&I,04/04/2018,Professional services - Legal,Property & Commercial Contracts,PA Consulting Services Ltd,4010980,"65,000",Consultancy support for sourcing options analysis
NS&I,30/04/2018,Professional services - Legal,Property & Commercial Contracts,PA Consulting Services Ltd,4011431,"65,000",Consultancy support for sourcing options analysis
NS&I,18/04/2018,Business intelligence and analysis,Strategy,MAPA INTERNATIONAL LTD,4011296,"61,800",Mobile banking subscription - January -December 2018
NS&I,18/04/2018,Unitary fee - Outsource partner,Programme Governance Assurance,Atos IT Services UK Ltd,4011239,"60,000",Call Analytics Enhancement Costs March 2018
NS&I,11/04/2018,Project costs - Outsource partner,Programme Delivery,Atos IT Services UK Ltd,4011258,"54,507",Product Enhancement Cost - Feb 2018
NS&I,25/04/2018,Product account bank charges,Finance,HMRC (Government Banking Service),4011364,"50,000",HMRC GBS Management Fees Q4 2017 / 2018
NS&I,30/04/2018,Advertising and production,Marketing Communications,Carat (Registered as Dentsu Aegis UK Ltd),4011427,"45,563",Cost of Marketing Campaigns
NS&I,11/04/2018,Project costs - Outsource partner,Transactional Customer Comms,Atos IT Services UK Ltd,4011046,"45,390",Update of forms involved in Transactions
NS&I,11/04/2018,Advertising and production,Marketing Communications,Carat (Registered as Dentsu Aegis UK Ltd),4011123,"42,073",Cost of Marketing Campaigns
NS&I,30/04/2018,Advertising and production,Marketing Communications,Carat (Registered as Dentsu Aegis UK Ltd),4011410,"40,000",Cost of Marketing Campaigns
NS&I,04/04/2018,Other travel and travel services,Finance,Redfern Travel Limited,4011201,"39,900",Travel Data 1-31 Mar 2018
NS&I,30/04/2018,Advertising and production,Intermediary Relationships,Centaur Communications Ltd,4011404,"39,360",Supporting Money Marketing events in 2018
NS&I,11/04/2018,Purchasing card charges,Finance,NatWest 471505930101077,4011193,"38,873",Credit Card purchases - Mar 2018
NS&I,04/04/2018,Corporate membership / Subscription fees,Proposition & Research,The Institute of Customer Service,4011157,"36,000",Advisory Network subscription January 2018 - March 2020.
NS&I,11/04/2018,Project costs - Outsource partner,Programme Delivery,Atos IT Services UK Ltd,4011238,"33,878",Website Improvement Costs - February 2018
NS&I,04/04/2018,Other travel and travel services,Finance,Redfern Travel Limited,4011200,"33,764",Travel Data 1-28 Feb 2018
NS&I,18/04/2018,Business intelligence and analysis,Strategy,MoneyFacts Group,4011340,"33,000",Moneyfacts Licence 1 Apr 18 - 31 Mar 19
NS&I,11/04/2018,Advertising and production,Marketing Communications,Carat (Registered as Dentsu Aegis UK Ltd),4011124,"32,632",Cost of Marketing Campaigns
NS&I,04/04/2018,Market research,Proposition & Research,Discovery Research Ltd.,4011071,"26,844",Product Literature research 
NS&I,25/04/2018,Office equipment / Fixtures and fittings - Maintenance,Property,Atos IT Services UK Ltd,4011390,"26,671",Maintenance Fees  - Regional Office 
NS&I,30/04/2018,Professional services - Legal,Compliance & Delivery,Government Legal Department,4011418,"26,400",Professional fees - Advisory 
NS&I,11/04/2018,Advertising and production,Marketing Communications,Carat (Registered as Dentsu Aegis UK Ltd),4011228,"-42,011.83",Refund on Cost of Marketing Campaigns
,,,,,,"13,627,161",
